bitfinex-derivatives/quotes_BTCF0:USTF0_20250811
["timestamp","ask_amount","ask_price","bid_price","bid_amount"]
[1754879564789,1.13798,121430.0,121420.0,1.43200481]
[1754879565288,1.98734,121430.0,121420.0,1.43200481]
[1754879565684,1.13798,121430.0,121420.0,1.80859502]
[1754879565890,1.98722,121430.0,121420.0,1.80859502]
[1754879566189,8.976e-05,121460.0,121440.0,0.12016]
[1754879566481,8.976e-05,121460.0,121450.0,1.38321021]
[1754879566683,0.84920976,121460.0,121450.0,1.38321021]
[1754879566876,8.976e-05,121460.0,121450.0,1.67184978]
[1754879567281,0.84912976,121460.0,121450.0,1.67184978]
[1754879567590,0.84922976,121460.0,121450.0,1.7542848]
[1754879568186,0.85122976,121460.0,121450.0,2.2621648]
[1754879568485,0.00318976,121460.0,121450.0,2.2621648]
[1754879568688,0.84990976,121460.0,121450.0,2.2621648]
[1754879568990,0.85190976,121460.0,121450.0,2.2621648]
[1754879569180,0.17629976,121460.0,121450.0,1.7219026]
[1754879569377,1.07172976,121460.0,121450.0,1.7229026]
[1754879569594,0.17329976,121460.0,121450.0,1.7229026]
[1754879569889,0.84870976,121460.0,121450.0,2.12061006]
[1754879570681,0.84850976,121460.0,121450.0,2.12061006]
[1754879570877,0.84850976,121460.0,121450.0,2.11961006]
[1754879571082,1.02161976,121460.0,121450.0,2.09849281]
[1754879571289,1.02361976,121460.0,121450.0,2.09749281]
[1754879571488,1.02361976,121460.0,121450.0,1.7209026]
[1754879571893,1.02361976,121460.0,121450.0,1.7250026]
[1754879572281,1.02161976,121460.0,121450.0,1.7250026]
[1754879572482,1.02261976,121460.0,121450.0,1.7250026]
[1754879572985,0.84910976,121460.0,121450.0,2.10159281]
[1754879573186,0.00118976,121460.0,121450.0,1.7250026]
[1754879573487,0.00118976,121460.0,121450.0,2.12220392]
[1754879573687,1.13816,121470.0,121450.0,2.12210392]
[1754879573888,1.13816,121470.0,121460.0,1.02241021]
[1754879574192,1.98588,121470.0,121460.0,1.14590479]
[1754879574496,1.13816,121470.0,121460.0,1.22823981]
[1754879574693,1.98584,121470.0,121460.0,1.22823981]
[1754879574989,1.98584,121470.0,121460.0,1.22833981]
[1754879575389,1.98584,121470.0,121460.0,1.73621981]
[1754879575588,1.98584,121470.0,121460.0,1.73721981]
[1754879575789,2.16014,121470.0,121460.0,1.3616296]
[1754879576097,1.36229,121470.0,121460.0,1.3616296]
[1754879576284,2.20969,121470.0,121460.0,1.1238396]
[1754879576490,1.36229,121470.0,121460.0,1.0766096]
[1754879576686,2.20949,121470.0,121460.0,1.0766096]
[1754879576900,1.73888021,121470.0,121460.0,1.0766096]
[1754879577095,1.73888021,121470.0,121460.0,0.7158096]
[1754879577297,2.58604021,121470.0,121460.0,0.7148096]
[1754879577499,2.20945,121470.0,121460.0,0.7148096]
[1754879578299,2.21045,121470.0,121460.0,0.7138096]
[1754879578798,2.21317,121470.0,121460.0,0.7138096]
[1754879578996,2.21317,121470.0,121460.0,1.1218396]
[1754879579302,2.21309,121470.0,121460.0,1.3596296]
[1754879579801,1.36629,121470.0,121460.0,1.3596296]
[1754879580189,2.21193,121470.0,121460.0,1.3596296]
[1754879580393,2.1631,121470.0,121460.0,1.3596296]
[1754879581200,2.1621,121470.0,121460.0,1.3596296]
[1754879581508,2.1591,121470.0,121460.0,1.6224296]
[1754879581698,1.31346,121470.0,121460.0,1.6224296]
[1754879581895,2.20977,121470.0,121460.0,1.6224296]
[1754879582705,1.13916,121470.0,121460.0,1.6224296]
[1754879582908,1.98428,121470.0,121460.0,1.99901981]
[1754879583098,1.98728,121470.0,121460.0,1.99901981]
[1754879583599,1.9872,121470.0,121460.0,1.99901981]
[1754879584607,2.15831,121470.0,121460.0,1.6224296]
[1754879584806,1.31227,121470.0,121460.0,1.6224296]
[1754879585104,2.15807,121470.0,121460.0,1.6224296]
[1754879585400,2.15826,121470.0,121460.0,1.6224296]
[1754879585608,2.15707,121470.0,121460.0,1.6224296]
[1754879585797,1.98392,121470.0,121460.0,1.6224296]
[1754879585999,1.98492,121470.0,121460.0,1.99901981]
[1754879586301,2.15223,121470.0,121460.0,1.99901981]
[1754879586498,2.15326,121470.0,121460.0,1.6224296]
[1754879586698,2.15326,121470.0,121460.0,1.6265296]
[1754879587402,1.30766,121470.0,121460.0,1.6265296]
[1754879587608,2.15095,121470.0,121460.0,1.6265296]
[1754879587805,2.15075,121470.0,121460.0,1.6265296]
[1754879588005,2.15071,121470.0,121460.0,1.6265296]
[1754879588505,2.15171,121470.0,121460.0,1.6265296]
[1754879589010,2.15071,121470.0,121460.0,1.6265296]
[1754879589606,2.1519,121470.0,121460.0,1.6265296]
[1754879589801,1.9834,121470.0,121460.0,2.00311981]
[1754879590908,2.15115,121470.0,121460.0,2.00311981]
[1754879591109,2.15115,121470.0,121460.0,1.6265296]
[1754879591311,2.15015,121470.0,121460.0,2.00311981]
[1754879591810,1.30547,121470.0,121460.0,2.00311981]
[1754879592010,1.98264,121470.0,121460.0,1.6265296]
[1754879592411,1.98264,121470.0,121460.0,2.00311981]
[1754879592617,2.14995,121470.0,121460.0,2.00311981]
[1754879593110,2.19762,121470.0,121460.0,1.3911196]
[1754879593506,2.19762,121470.0,121460.0,1.3415096]
[1754879593808,1.72973021,121470.0,121460.0,0.9807096]
[1754879594114,2.93465021,121470.0,121460.0,0.28288]
[1754879594306,2.55806,121470.0,121460.0,0.28288]
[1754879594506,2.55802,121470.0,121460.0,0.28288]
[1754879595003,2.56102,121470.0,121460.0,0.28288]
[1754879595205,2.56112,121470.0,121460.0,0.28298]
[1754879595506,2.09463021,121470.0,121460.0,0.28298]
[1754879595810,3.40312621,121470.0,121460.0,0.28589]
[1754879596514,3.48544501,121470.0,121460.0,0.28589]
[1754879596706,3.40312621,121470.0,121460.0,0.28589]
[1754879597608,3.48544491,121470.0,121460.0,0.28589]
[1754879597815,3.48512491,121470.0,121460.0,0.28589]
[1754879598009,2.64160491,121470.0,121460.0,0.28589]
[1754879598309,3.48508491,121470.0,121460.0,0.28589]
[1754879598509,3.48500491,121470.0,121460.0,0.28179]
[1754879598907,3.48700491,121470.0,121460.0,0.28179]
[1754879600204,2.64360481,121470.0,121460.0,0.28179]
[1754879600407,3.48700481,121470.0,121460.0,0.28179]
[1754879600711,2.64360481,121470.0,121460.0,0.28179]
[1754879600911,3.48672481,121470.0,121460.0,0.28179]
[1754879601117,3.48664481,121470.0,121460.0,0.28179]
[1754879601303,3.48664491,121470.0,121460.0,0.28179]
[1754879603709,3.48628491,121470.0,121460.0,0.28179]
[1754879604018,3.48628491,121470.0,121460.0,0.28589]
[1754879604410,0.1646827,121440.0,121420.0,0.1167135]
[1754879604611,1.57991524,121430.0,121420.0,0.1167135]
[1754879604808,0.73747524,121430.0,121420.0,0.0671035]
[1754879605311,0.36088503,121430.0,121420.0,0.1167135]
[1754879605513,1.20330503,121430.0,121420.0,0.3488435]
[1754879605709,1.20322503,121430.0,121420.0,0.1168135]
[1754879605909,1.74448724,121430.0,121420.0,0.0672035]
[1754879606114,1.34543264,121430.0,121420.0,0.0672035]
[1754879606314,2.18759264,121430.0,121420.0,0.0672035]
[1754879606612,2.18759264,121430.0,121420.0,0.0692035]
[1754879607011,1.34543264,121430.0,121420.0,0.0692035]
[1754879607208,2.18763264,121430.0,121420.0,0.0682035]
[1754879607409,2.10528724,121430.0,121420.0,0.1188135]
[1754879608515,1.74448724,121430.0,121420.0,0.1188135]
[1754879609017,1.20318503,121430.0,121420.0,0.3508435]
[1754879609510,1.66168024,121430.0,121420.0,0.1188135]
[1754879609710,1.66164024,121430.0,121420.0,0.1229135]
[1754879610717,1.57929524,121430.0,121420.0,0.1229135]
[1754879610916,0.73757524,121430.0,121420.0,0.1229135]
[1754879611114,1.20266503,121430.0,121420.0,0.3549435]
[1754879611612,0.00018503,121430.0,121420.0,0.7157435]
[1754879611818,0.00018503,121430.0,121420.0,0.9223631]
[1754879612417,0.84142503,121430.0,121420.0,0.9223631]
[1754879612818,0.00018503,121430.0,121420.0,0.9223631]
[1754879613019,0.84134503,121430.0,121420.0,0.9223631]
[1754879613222,0.00018503,121430.0,121420.0,1.29895331]
[1754879613513,0.24139,121460.0,121420.0,1.01721331]
[1754879613723,0.24139,121460.0,121450.0,0.64244]
[1754879613912,1.08243,121460.0,121450.0,0.28574]
[1754879614114,0.24139,121460.0,121450.0,0.28574]
[1754879614309,1.08239,121460.0,121450.0,0.64654]
[1754879614615,1.08245218,121460.0,121450.0,0.64244]
[1754879614921,0.24455218,121460.0,121450.0,0.64254]
[1754879615222,0.24455218,121460.0,121450.0,0.84904175]
[1754879615223,0.00316218,121460.0,121450.0,0.84904175]
[1754879615417,0.84392218,121460.0,121450.0,0.84904175]
[1754879615618,0.00316218,121460.0,121450.0,1.22563196]
[1754879615920,0.84380218,121460.0,121450.0,0.84904175]
[1754879616122,0.00316218,121460.0,121450.0,0.84904175]
[1754879616621,0.84472218,121460.0,121450.0,0.84904175]
[1754879616810,0.00416218,121460.0,121450.0,0.84904175]
[1754879617013,0.84460218,121460.0,121450.0,0.84904175]
[1754879617214,0.84460218,121460.0,121450.0,1.22563196]
[1754879617414,0.79460218,121460.0,121450.0,1.69020395]
[1754879617614,0.84032,121460.0,121450.0,1.40856395]
[1754879618017,0.66532,121460.0,121450.0,1.67136395]
[1754879618219,1.13816,121470.0,121450.0,1.67136395]
[1754879618419,1.13825693,121470.0,121460.0,1.01441021]
[1754879618624,0.83825693,121470.0,121460.0,1.01451021]
[1754879618826,1.67829693,121470.0,121460.0,1.30185205]
[1754879619123,1.67825693,121470.0,121460.0,1.38418707]
[1754879619324,1.67925693,121470.0,121460.0,1.38418707]
[1754879619722,0.0001,121480.0,121460.0,1.40716707]
[1754879619919,0.0001,121480.0,121470.0,1.01441021]
[1754879620118,0.0001,121490.0,121470.0,1.00029021]
[1754879620314,0.0001,121490.0,121480.0,1.01441021]
[1754879620518,0.83982,121490.0,121480.0,1.01441021]
[1754879620721,0.61592,121490.0,121480.0,1.30328682]
[1754879621118,1.1856178,121510.0,121480.0,1.6856015]
[1754879621323,1.1856178,121510.0,121500.0,0.43062]
[1754879621324,1.4278478,121510.0,121500.0,0.43062]
[1754879621622,2.2672878,121510.0,121500.0,0.43062]
[1754879621828,2.2672878,121510.0,121500.0,0.55455557]
[1754879622028,2.2672878,121510.0,121500.0,0.63687025]
[1754879622230,1.4278478,121510.0,121500.0,0.63687025]
[1754879622424,2.2671278,121510.0,121500.0,0.63687025]
[1754879622727,2.2680878,121510.0,121500.0,0.63687025]
[1754879623231,2.2710878,121510.0,121500.0,0.63687025]
[1754879624232,1.4318478,121510.0,121500.0,0.63687025]
[1754879624533,2.2710878,121510.0,121500.0,0.70185807]
[1754879625330,1.4318478,121510.0,121500.0,0.63203807]
[1754879625733,2.2704878,121510.0,121500.0,0.63203807]
[1754879625934,1.4318478,121510.0,121500.0,0.63203807]
[1754879626236,2.2704078,121510.0,121500.0,0.63203807]
[1754879626431,1.4318478,121510.0,121500.0,0.63203807]
[1754879626634,1.4318478,121510.0,121500.0,0.87229803]
[1754879626834,2.1975878,121510.0,121500.0,0.70081842]
[1754879627033,1.4318478,121510.0,121500.0,0.70081842]
[1754879627336,2.2702478,121510.0,121500.0,0.70081842]
[1754879627536,1.4318478,121510.0,121500.0,0.70081842]
[1754879627734,2.2701278,121510.0,121500.0,0.70081842]
[1754879628734,1.4318478,121510.0,121500.0,0.70081842]
[1754879628938,2.2700478,121510.0,121500.0,0.70081842]
[1754879629139,1.4318478,121510.0,121500.0,0.70081842]
[1754879629333,2.2698478,121510.0,121500.0,0.70081842]
[1754879629541,1.4318478,121510.0,121500.0,0.70081842]
[1754879629730,2.2696878,121510.0,121500.0,0.63099842]
[1754879630442,1.4318478,121510.0,121500.0,0.63099842]
[1754879630639,2.2696878,121510.0,121500.0,0.63099842]
[1754879630840,2.2696878,121510.0,121500.0,0.54869729]
[1754879631345,1.4318478,121510.0,121500.0,0.54869729]
[1754879631640,2.2693278,121510.0,121500.0,0.55279729]
[1754879632237,0.28975,121500.0,121480.0,0.36090566]
[1754879632437,1.12707,121490.0,121480.0,0.70499171]
[1754879632739,1.12707,121490.0,121480.0,0.91566132]
[1754879633442,1.12687,121490.0,121480.0,0.63864132]
[1754879633644,1.12687,121490.0,121480.0,0.63874132]
[1754879633941,0.28975,121490.0,121480.0,0.91576132]
[1754879634243,1.12675,121490.0,121480.0,1.29235153]
[1754879634432,0.837,121490.0,121480.0,1.29235153]
[1754879634637,0.0001,121500.0,121490.0,0.46298]
[1754879634842,0.83692,121500.0,121490.0,0.92345021]
[1754879635139,0.83688,121500.0,121490.0,1.04680733]
[1754879635333,0.83688,121500.0,121490.0,1.40613524]
[1754879635532,0.0001,121510.0,121490.0,1.10777124]
[1754879635741,0.28975,121530.0,121520.0,0.27702]
[1754879636041,1.12647,121530.0,121520.0,0.40528779]
[1754879636241,1.12639,121530.0,121520.0,0.76608779]
[1754879636433,1.12639,121530.0,121520.0,0.48757538]
[1754879636741,1.12645623,121530.0,121520.0,0.84837538]
[1754879636938,1.12645623,121530.0,121520.0,0.84847538]
[1754879637142,1.12645623,121530.0,121520.0,0.48767538]
[1754879637342,1.12645623,121530.0,121520.0,0.84847538]
[1754879637545,1.12645623,121530.0,121520.0,0.48767538]
[1754879637746,0.28981623,121530.0,121520.0,0.41785538]
[1754879637946,1.12613623,121530.0,121520.0,0.20655538]
[1754879638450,1.48993623,121530.0,121520.0,0.12426779]
[1754879638749,1.49493623,121530.0,121520.0,0.12426779]
[1754879639145,1.87152644,121530.0,121520.0,0.12426779]
[1754879639453,1.03520644,121530.0,121520.0,0.0001]
[1754879639645,0.28975,121520.0,121510.0,0.0216]
[1754879639943,1.86310021,121520.0,121510.0,0.1450312]
[1754879640151,1.48651,121520.0,121510.0,0.1450312]
[1754879640349,1.19173222,121520.0,121510.0,0.1450312]
[1754879640550,0.65055,121520.0,121510.0,0.1450312]
[1754879640750,1.48631,121520.0,121510.0,0.1451312]
[1754879640950,1.48831,121520.0,121510.0,0.1451312]
[1754879641445,1.02914021,121520.0,121510.0,0.1451312]
[1754879641645,1.86482021,121520.0,121510.0,0.1451312]
[1754879641845,1.48823,121520.0,121510.0,0.1451312]
[1754879642054,1.86482021,121520.0,121510.0,0.1451312]
[1754879642248,1.02914021,121520.0,121510.0,0.1451312]
[1754879642454,0.65255,121520.0,121510.0,0.1451312]
[1754879642753,1.12723,121520.0,121510.0,0.3523312]
[1754879643147,1.12723,121520.0,121510.0,0.1451312]
[1754879643352,1.13123,121520.0,121510.0,0.1451312]
[1754879643852,1.13123,121520.0,121510.0,0.50444556]
[1754879643853,1.13099,121520.0,121510.0,0.50444556]
[1754879644155,0.29575,121520.0,121510.0,0.50444556]
[1754879644343,1.13099,121520.0,121510.0,0.50444556]
[1754879645049,1.13099,121520.0,121510.0,0.86524556]
[1754879645855,1.13063,121520.0,121510.0,0.86524556]
[1754879646054,0.29575,121520.0,121510.0,0.86524556]
[1754879646252,1.13063,121520.0,121510.0,0.86524556]
[1754879647151,0.29575,121520.0,121510.0,0.86524556]
[1754879647356,1.13035,121520.0,121510.0,0.86524556]
[1754879648953,0.29575,121520.0,121510.0,0.86524556]
[1754879649159,0.84028,121520.0,121510.0,1.50463577]
[1754879649362,1.12308,121520.0,121510.0,1.12804556]
[1754879649553,1.31498,121520.0,121510.0,1.12804556]
[1754879649856,0.48078,121520.0,121510.0,1.04982556]
[1754879650356,1.3149,121520.0,121510.0,1.04982556]
[1754879650756,1.31478,121520.0,121510.0,1.05392556]
[1754879651146,1.31478,121520.0,121510.0,0.69312556]
[1754879651352,1.31478,121520.0,121510.0,1.05392556]
[1754879651858,0.48078,121520.0,121510.0,1.05392556]
[1754879652055,1.21817021,121520.0,121510.0,0.23152556]
[1754879652257,2.05185021,121520.0,121510.0,0.1492312]
[1754879652455,0.84158,121520.0,121510.0,0.1492312]
[1754879652650,1.31442,121520.0,121510.0,0.70154556]
[1754879653361,0.48078,121520.0,121510.0,1.06234556]
[1754879653560,1.31426,121520.0,121510.0,1.06234556]
[1754879654053,1.67506,121520.0,121510.0,0.23152556]
[1754879654454,1.67494,121520.0,121510.0,0.23152556]
[1754879654655,0.84158,121520.0,121510.0,0.23152556]
[1754879654854,1.67486,121520.0,121510.0,0.23152556]
[1754879655060,1.67482,121520.0,121510.0,0.23152556]
[1754879656759,1.31382,121520.0,121510.0,0.23152556]
[1754879657463,1.31382,121520.0,121510.0,0.99408556]
[1754879657662,1.31382,121520.0,121510.0,1.06234556]
[1754879659758,0.48078,121520.0,121510.0,1.06234556]
[1754879659963,1.19811,121520.0,121510.0,1.06234556]
[1754879660275,0.83836,121520.0,121510.0,1.43893577]
[1754879661263,1.00613,121520.0,121510.0,1.43893577]
[1754879661566,1.05222,121520.0,121510.0,1.43893577]
[1754879662468,1.12116,121520.0,121510.0,1.06234556]
[1754879663959,0.006,121520.0,121510.0,1.06234556]
[1754879664159,0.8376,121520.0,121510.0,1.06234556]
[1754879664359,0.8376,121520.0,121510.0,1.32514556]
[1754879664558,0.8376,121520.0,121510.0,1.70173577]
[1754879664767,1.12028,121520.0,121510.0,1.70173577]
[1754879665068,1.31226,121520.0,121510.0,1.32514556]
[1754879665961,0.48078,121520.0,121510.0,1.32514556]
[1754879666162,1.31222,121520.0,121510.0,1.32514556]
[1754879667156,1.31222,121520.0,121510.0,1.90792777]
[1754879667157,0.006,121520.0,121510.0,1.90792777]
[1754879667361,0.00016623,121530.0,121510.0,1.90792777]
[1754879667362,1.42032,121550.0,121540.0,0.47002]
[1754879667561,2.25128,121550.0,121540.0,1.20741021]
[1754879667867,1.42032,121550.0,121540.0,0.83082]
[1754879668069,2.2512,121550.0,121540.0,0.91311436]
[1754879668269,2.25116,121550.0,121540.0,0.91311436]
[1754879668569,1.42039485,121550.0,121540.0,0.91321436]
[1754879668761,2.25115485,121550.0,121540.0,0.91321436]
[1754879669469,1.42039485,121550.0,121540.0,0.91321436]
[1754879669669,1.96915485,121550.0,121540.0,0.91321436]
[1754879669869,2.25195485,121550.0,121540.0,0.91321436]
[1754879671470,2.18301485,121550.0,121540.0,0.91321436]
[1754879671771,1.42139485,121550.0,121540.0,0.91321436]
[1754879671967,2.25151485,121550.0,121540.0,0.91321436]
[1754879672665,1.42139485,121550.0,121540.0,0.91731436]
[1754879672864,2.25131485,121550.0,121540.0,0.91731436]
[1754879673874,1.42139485,121550.0,121540.0,0.91731436]
[1754879674173,2.25111485,121550.0,121540.0,0.91731436]
[1754879674371,1.96831485,121550.0,121540.0,0.91731436]
[1754879674563,1.13859485,121550.0,121540.0,1.4165396]
[1754879674762,1.96823485,121550.0,121540.0,1.4165396]
[1754879674967,1.96815485,121550.0,121540.0,1.03994939]
[1754879675168,1.13859485,121550.0,121540.0,1.4165396]
[1754879675468,1.96807485,121550.0,121540.0,1.41664351]
[1754879675964,1.96807485,121550.0,121540.0,1.58119551]
[1754879676164,0.83055485,121550.0,121540.0,1.58119551]
[1754879677169,0.82955485,121550.0,121540.0,1.58219551]
[1754879677675,7.485e-05,121550.0,121540.0,1.58219551]
[1754879677975,0.82911485,121550.0,121540.0,1.58219551]
[1754879678971,7.485e-05,121550.0,121540.0,1.58219551]
[1754879679172,0.82903485,121550.0,121540.0,1.58219551]
[1754879680778,0.82883485,121550.0,121540.0,1.58219551]
[1754879680974,7.485e-05,121550.0,121540.0,1.58219551]
[1754879681479,0.82843485,121550.0,121540.0,1.58219551]
[1754879683074,0.8283,121560.0,121540.0,1.58219551]
[1754879683375,1.20747,121590.0,121570.0,0.48706]
[1754879683579,0.828,121580.0,121570.0,0.48706]
[1754879683880,0.828,121580.0,121570.0,1.33190986]
[1754879684081,0.828,121580.0,121570.0,1.56095394]
[1754879684284,0.828,121580.0,121570.0,1.72545794]
[1754879684579,0.828,121580.0,121570.0,1.72555794]
[1754879684878,0.82776,121580.0,121570.0,1.80808815]
[1754879685177,0.82776,121580.0,121570.0,1.64358415]
[1754879685375,0.47644,121580.0,121570.0,1.26699394]
[1754879685568,1.304,121580.0,121570.0,1.12432391]
[1754879685867,1.306,121580.0,121570.0,1.09546754]
[1754879686071,1.307,121580.0,121570.0,1.09546754]
[1754879686280,1.307,121580.0,121570.0,0.9957348]
[1754879687281,0.47944,121580.0,121570.0,0.9957348]
[1754879687481,1.30696,121580.0,121570.0,0.9957348]
[1754879687981,1.30696,121580.0,121570.0,1.2169848]
[1754879688169,1.30696,121580.0,121570.0,1.0446648]
[1754879688780,1.30696,121580.0,121570.0,0.9957348]
[1754879689075,1.30636,121580.0,121570.0,0.9957348]
[1754879689279,0.47944,121580.0,121570.0,0.9957348]
[1754879689480,1.30632,121580.0,121570.0,0.9957348]
[1754879689672,0.47944,121580.0,121570.0,0.9957348]
[1754879689874,1.30624,121580.0,121570.0,0.9957348]
[1754879690284,1.30624,121580.0,121570.0,1.2169848]
[1754879691581,1.30624,121580.0,121570.0,1.2897948]
[1754879691778,0.47944,121580.0,121570.0,1.38949447]
[1754879691980,1.30588,121580.0,121570.0,0.37383447]
[1754879692174,0.47944,121580.0,121570.0,0.73463447]
[1754879692385,1.3058,121580.0,121570.0,0.73463447]
[1754879693585,1.3058,121580.0,121570.0,0.6349348]
[1754879694080,1.3058,121580.0,121570.0,0.8977348]
[1754879694479,1.30544,121580.0,121570.0,1.3847948]
[1754879694679,0.47944,121580.0,121570.0,1.76138501]
[1754879694881,1.30536,121580.0,121570.0,1.76138501]
[1754879696889,0.47944,121580.0,121570.0,1.27432501]
[1754879697084,1.30496,121580.0,121570.0,1.27432501]
[1754879697285,1.30492,121580.0,121570.0,1.27432501]
[1754879697484,1.30492,121580.0,121570.0,0.8977348]
[1754879697684,1.30492,121580.0,121570.0,1.04040483]
[1754879697884,1.30492,121580.0,121570.0,1.33446483]
[1754879698292,0.47944,121580.0,121570.0,1.33446483]
[1754879698490,1.30472,121580.0,121570.0,1.1917948]
[1754879698984,1.30472,121580.0,121570.0,0.8977348]
[1754879699291,0.47944,121580.0,121570.0,0.77448494]
[1754879699589,1.30456,121580.0,121570.0,0.77448494]
[1754879699891,0.47944,121580.0,121570.0,0.61141698]
[1754879700091,1.30444,121580.0,121570.0,0.61141698]
[1754879700992,1.30428,121580.0,121570.0,0.61141698]
[1754879701187,0.74730924,121580.0,121570.0,0.52918916]
[1754879701388,1.57210924,121580.0,121570.0,0.52918916]
[1754879701589,1.57210924,121580.0,121570.0,0.52508916]
[1754879701790,1.57210924,121580.0,121570.0,0.52918916]
[1754879702087,1.93278924,121580.0,121570.0,0.06851089]
[1754879702296,1.93278924,121580.0,121550.0,0.3608]
[1754879702297,0.47644,121570.0,121550.0,0.3608]
[1754879702489,1.00873,121560.0,121550.0,0.50347003]
[1754879702684,1.00873,121560.0,121550.0,0.22492378]
[1754879702885,1.00873,121560.0,121550.0,0.58982378]
[1754879703083,0.74430924,121560.0,121550.0,0.14677003]
[1754879703388,1.001776,121560.0,121550.0,0.19090409]
[1754879703584,1.465376,121560.0,121550.0,0.25752471]
[1754879703783,1.30084,121560.0,121550.0,0.25752471]
[1754879703985,1.30084,121560.0,121550.0,1.09472123]
[1754879704190,0.47644,121560.0,121550.0,0.82685199]
[1754879704386,1.3008,121560.0,121550.0,0.75404199]
[1754879704595,1.3008,121560.0,121550.0,1.11484199]
[1754879704795,1.3008,121560.0,121550.0,0.82962199]
[1754879705496,1.3008,121560.0,121550.0,1.07475199]
[1754879705890,1.3008,121560.0,121550.0,1.0020779]
[1754879705891,0.4288,121560.0,121550.0,1.0020779]
[1754879706093,1.25288,121560.0,121550.0,1.0020779]
[1754879706298,0.97763,121560.0,121550.0,1.37885162]
[1754879706601,0.824,121560.0,121550.0,1.20733356]
[1754879706798,0.0001,121570.0,121550.0,1.20733356]
[1754879706999,0.0001,121570.0,121560.0,0.83795]
[1754879707298,0.0001,121580.0,121570.0,0.47715]
[1754879707492,1.14778,121580.0,121570.0,1.35760125]
[1754879707692,1.21623,121580.0,121570.0,0.98082753]
[1754879708093,1.21623,121580.0,121570.0,1.06309143]
[1754879708392,1.21623,121580.0,121570.0,0.9203139]
[1754879708597,1.21623,121580.0,121570.0,1.06313013]
[1754879708899,1.26296,121580.0,121570.0,1.06313013]
[1754879709098,1.26396,121580.0,121570.0,1.06313013]
[1754879709493,0.42407,121580.0,121570.0,1.06313013]
[1754879709796,1.24951,121580.0,121570.0,1.06313013]
[1754879710593,1.24951,121580.0,121570.0,1.06306923]
[1754879711801,1.29592,121580.0,121570.0,0.846213]
[1754879712003,1.29592,121580.0,121570.0,0.920253]
[1754879712500,1.24919,121580.0,121570.0,0.920253]
[1754879713000,1.29592,121580.0,121570.0,0.920253]
[1754879713893,1.24919,121580.0,121570.0,0.920253]
[1754879714293,1.24883,121580.0,121570.0,1.0440047]
[1754879715400,0.82568,121580.0,121570.0,1.42077842]
[1754879715698,0.82548,121580.0,121570.0,1.42077842]
[1754879715897,1.10463,121580.0,121570.0,1.42077842]
[1754879717502,0.28215,121580.0,121570.0,1.42077842]
[1754879717697,1.10463,121580.0,121570.0,1.42077842]
[1754879717899,1.10463,121580.0,121570.0,1.56376586]
[1754879718199,0.003,121580.0,121570.0,1.56376586]
[1754879718402,0.82496,121580.0,121570.0,1.56376586]
[1754879718700,0.82496,121580.0,121570.0,1.42077842]
[1754879719004,0.82496,121580.0,121570.0,1.0440047]
[1754879719198,1.10411,121580.0,121570.0,1.42077842]
[1754879719592,1.10411,121580.0,121570.0,1.60758251]
[1754879720100,0.82496,121580.0,121570.0,1.60758251]
[1754879720599,0.98775,121580.0,121570.0,1.60758251]
[1754879720800,1.10411,121580.0,121570.0,1.42077842]
[1754879722101,1.03566,121580.0,121570.0,1.42077842]
[1754879722302,0.82496,121580.0,121570.0,1.42077842]
[1754879722608,0.82464,121580.0,121570.0,1.42077842]
[1754879723005,0.98743,121580.0,121570.0,1.42077842]
[1754879723505,0.98743,121580.0,121570.0,1.42487842]
[1754879724303,0.82464,121580.0,121570.0,1.31590213]
[1754879724810,0.003,121580.0,121570.0,1.31590213]
[1754879725011,0.82404,121580.0,121570.0,1.31590213]
[1754879725209,0.824,121580.0,121570.0,1.31590213]
[1754879725609,0.824,121580.0,121570.0,1.50270622]
[1754879726006,0.003,121580.0,121570.0,1.50270622]
[1754879726207,0.003,121580.0,121570.0,1.96721022]
[1754879726409,1.36788,121630.0,121610.0,0.04867]
[1754879726606,1.29056,121620.0,121610.0,0.57721089]
[1754879726909,1.29056,121620.0,121610.0,0.93801089]
[1754879727110,1.29056,121620.0,121610.0,0.92020375]
[1754879727306,1.29065855,121620.0,121610.0,0.92020375]
[1754879727513,1.29065855,121620.0,121610.0,0.92030375]
[1754879727716,1.29065855,121620.0,121610.0,1.06311911]
[1754879728515,1.29157855,121620.0,121610.0,0.93479751]
[1754879729111,0.00109855,121620.0,121610.0,1.31531842]
[1754879729314,0.0001,121630.0,121620.0,0.47715]
[1754879729614,0.82028,121630.0,121620.0,1.30901182]
[1754879729810,0.82028,121630.0,121620.0,1.59738956]
[1754879730112,0.82028,121630.0,121620.0,1.68371625]
[1754879730310,0.82026,121640.0,121620.0,2.80205494]
[1754879730614,0.0001,121640.0,121630.0,1.50822299]
[1754879730806,0.0001,121650.0,121630.0,1.67274699]
[1754879731013,1.28092,121660.0,121630.0,1.63089197]
[1754879731209,1.28092,121660.0,121630.0,1.7131119]
[1754879731410,0.50753,121660.0,121630.0,0.8929919]
[1754879731602,0.3608,121640.0,121630.0,1.50108155]
[1754879731807,0.3608,121640.0,121630.0,1.56664435]
[1754879732007,0.3608,121640.0,121630.0,1.35874744]
[1754879732207,0.3608,121640.0,121630.0,1.35884744]
[1754879732410,0.3608,121640.0,121630.0,0.53880744]
[1754879732616,0.3608,121640.0,121630.0,1.50125123]
[1754879732816,0.3609,121650.0,121630.0,1.77794041]
[1754879733018,0.3609,121650.0,121640.0,0.37642091]
[1754879733311,0.3608,121650.0,121640.0,0.37652091]
[1754879733514,0.3608,121650.0,121640.0,0.76870329]
[1754879733816,0.3608,121650.0,121640.0,1.2940488]
[1754879734018,0.3608,121650.0,121640.0,0.75135806]
[1754879734207,0.3608,121650.0,121640.0,0.47448322]
[1754879734615,0.3608,121650.0,121640.0,0.47648322]
[1754879735513,0.3608,121650.0,121640.0,1.29588322]
[1754879736017,0.3608,121650.0,121640.0,1.19633715]
[1754879736413,0.3608,121650.0,121640.0,1.29584949]
[1754879736810,0.3608,121650.0,121640.0,0.37693715]
[1754879737009,1.21400091,121650.0,121640.0,0.21252115]
[1754879737316,1.65658,121650.0,121640.0,0.30793349]
[1754879737616,2.03296091,121650.0,121640.0,0.30793349]
[1754879738016,2.03292091,121650.0,121640.0,0.30793349]
[1754879738206,0.47678,121640.0,121620.0,0.14270248]
[1754879738411,1.57480091,121630.0,121620.0,0.14270248]
[1754879738615,2.39364091,121630.0,121620.0,0.3476946]
[1754879738810,2.39360091,121630.0,121620.0,0.41994671]
[1754879739117,0.76702,121630.0,121620.0,0.44588292]
[1754879739320,1.60136091,121640.0,121620.0,0.44588292]
[1754879739519,0.40632,121640.0,121620.0,0.28054292]